bitfinex-derivatives/quotes_BTCF0:USTF0_20210108
["timestamp","ask_amount","ask_price","bid_price","bid_amount"]
[1610077624292,0.13632608,37992.0,37991.0,0.15279375]
[1610077625193,0.13632608,37992.0,37991.0,0.13234]
[1610077625393,0.13632608,37992.0,37991.0,0.15279255]
[1610077628997,0.13632608,37992.0,37991.0,0.13234]
[1610077629198,0.13632608,37992.0,37991.0,0.02045218]
[1610077629797,0.13632608,37992.0,37991.0,0.11284218]
[1610077640115,0.13632608,38002.0,37991.0,0.11284218]
[1610077640513,0.13632608,38002.0,37992.0,0.02044371]
[1610077641916,0.13632608,38002.0,38001.0,0.13632608]
[1610077642116,0.13632608,38002.0,38001.0,0.25679608]
[1610077642319,0.13632608,38002.0,38001.0,0.27723934]
[1610077645922,0.4684,38007.0,38001.0,3.31863934]
[1610077646323,0.13632608,38010.0,38002.0,0.14052547]
[1610077647123,0.4764,38014.0,38002.0,0.14052547]
[1610077647525,0.3195,38014.0,38002.0,0.14052547]
[1610077647926,0.3195,38014.0,38013.0,0.13632608]
[1610077648327,0.20627951,38002.0,38001.0,0.12047]
[1610077648527,0.20627951,38002.0,38000.0,3.9842]
[1610077648926,0.20627951,38002.0,38001.0,0.14047568]
[1610077649127,0.20627951,38002.0,38001.0,0.24157568]
[1610077649930,0.20627951,38002.0,38001.0,0.37790176]
[1610077651632,0.1569,38032.0,38001.0,0.37790176]
[1610077652133,0.1569,38032.0,38024.0,0.27103608]
[1610077652533,0.1569,38032.0,38025.0,0.02043137]
[1610077653335,0.3195,38041.0,38025.0,0.02043137]
[1610077653734,0.3195,38041.0,38024.0,0.3910663]
[1610077653936,0.3195,38041.0,38026.0,0.02045149]
[1610077654134,0.13632608,38027.0,38025.0,0.02045049]
[1610077654336,0.13632608,38027.0,38024.0,0.3910663]
[1610077654735,0.13632608,38027.0,38025.0,0.02045072]
[1610077656738,0.3195,38041.0,38025.0,0.02045072]
[1610077658039,0.3195,38041.0,38035.0,0.13632608]
[1610077658240,0.3195,38041.0,38035.0,0.22999608]
[1610077658640,0.3195,38041.0,38036.0,0.0204491]
[1610077659340,0.3195,38041.0,38035.0,0.22999608]
[1610077659540,0.3195,38041.0,38035.0,4.03429608]
[1610077659740,0.3195,38041.0,38037.0,0.02044867]
[1610077659938,0.3195,38041.0,38036.0,0.1405069]
[1610077660140,0.13632608,38037.0,38036.0,0.12005827]
[1610077660739,0.13632608,38037.0,38036.0,0.14050686]
[1610077662240,0.13632608,38037.0,38036.0,0.02044859]
[1610077665143,0.13632608,38037.0,38035.0,0.22999608]
[1610077665343,0.3195,38041.0,38036.0,0.02063256]
[1610077665745,0.3195,38041.0,38037.0,3.68373222]
[1610077665944,0.3195,38041.0,38037.0,3.6631]
[1610077666145,0.3195,38041.0,38040.0,0.13632608]
[1610077666746,0.3195,38041.0,38040.0,0.15695811]
[1610077668148,0.3195,38041.0,38037.0,3.42113319]
[1610077668549,0.3195,38041.0,38038.0,0.02063154]
[1610077669150,0.50996086,38041.0,38038.0,0.02063154]
[1610077670150,0.50996086,38041.0,38040.0,0.13632608]
[1610077670551,0.19046086,38041.0,38040.0,0.15695619]
[1610077673252,0.13632608,38052.0,38040.0,0.15695619]
[1610077673853,0.13632608,38052.0,38041.0,0.02062859]
[1610077674256,0.13632608,38052.0,38051.0,3.66496608]
[1610077674656,0.4764,38075.0,38051.0,3.66496608]
[1610077674855,0.4764,38075.0,38051.0,3.80609566]
[1610077675055,0.4764,38075.0,38052.0,0.14112566]
[1610077675956,0.3195,38075.0,38052.0,0.14112566]
[1610077676156,0.3195,38075.0,38071.0,0.13632608]
[1610077676557,0.3195,38075.0,38071.0,0.27145608]
[1610077676757,0.3195,38075.0,38072.0,0.02061867]
[1610077678156,0.13632608,38073.0,38072.0,0.02061867]
[1610077678357,0.13632608,38073.0,38072.0,4.10121867]
[1610077678757,0.1569,38093.0,38072.0,4.22166274]
[1610077679359,0.1569,38093.0,38073.0,0.14105479]
[1610077679557,0.1569,38093.0,38073.0,0.0666497]
[1610077679758,0.1569,38093.0,38074.0,0.0206185]
[1610077680059,0.1569,38093.0,38072.0,0.02061878]
[1610077680259,0.13632608,38073.0,38072.0,0.02061878]
[1610077680460,0.13632608,38073.0,38071.0,0.58823]
[1610077680660,0.13632608,38073.0,38072.0,0.06665503]
[1610077680860,0.13632608,38073.0,38072.0,0.0206185]
[1610077681061,0.13632608,38073.0,38072.0,0.06665235]
[1610077681460,0.13632608,38073.0,38072.0,0.0206185]
[1610077681661,0.13632608,38073.0,38072.0,0.06664959]
[1610077681862,0.13632608,38073.0,38072.0,0.0206185]
[1610077682261,0.13632608,38077.0,38072.0,0.15694458]
[1610077682663,0.13632608,38077.0,38073.0,0.02132512]
[1610077683261,0.13632608,38077.0,38073.0,0.14359831]
[1610077683962,0.13632608,38077.0,38076.0,3.5943]
[1610077684164,0.3195,38101.0,38076.0,3.73062608]
[1610077684565,0.3195,38101.0,38077.0,0.14357699]
[1610077684965,0.3195,38101.0,38086.0,4.31132]
[1610077685368,0.3195,38101.0,38087.0,0.12223304]
[1610077685566,0.3195,38101.0,38087.0,0.14355071]
[1610077686168,0.3195,38101.0,38099.0,0.13632608]
[1610077686570,0.3195,38101.0,38100.0,3.51451695]
[1610077686971,0.3195,38101.0,38100.0,3.5613981]
[1610077688271,0.45582608,38101.0,38100.0,3.5613981]
[1610077688470,0.45582608,38101.0,38100.0,0.0681981]
[1610077688971,0.45582608,38101.0,38100.0,0.02131695]
[1610077697080,0.45582608,38101.0,38100.0,0.54571695]
[1610077697281,0.3195,38101.0,38100.0,0.02131695]
[1610077697482,0.3195,38101.0,38100.0,0.06819222]
[1610077697679,0.4684,38115.0,38108.0,3.88]
[1610077697879,0.4764,38140.0,38108.0,3.9941]
[1610077698280,0.4764,38140.0,38114.0,0.13632608]
[1610077700181,0.4764,38140.0,38120.0,0.13632608]
[1610077700585,0.4764,38140.0,38121.0,0.02130904]
[1610077701183,0.4764,38140.0,38128.0,3.4536]
[1610077701384,0.4764,38140.0,38128.0,3.56408]
[1610077701583,0.4764,38140.0,38129.0,0.06817167]
[1610077702184,0.4764,38140.0,38139.0,0.13632608]
[1610077702387,0.4764,38140.0,38129.0,0.06817167]
[1610077702585,0.3195,38140.0,38139.0,0.13601608]
[1610077704187,0.45582608,38140.0,38139.0,0.13601608]
[1610077705690,0.13632608,38140.0,38139.0,0.13601608]
[1610077706588,0.13632608,38140.0,38139.0,0.73391608]
[1610077707189,0.13632608,38140.0,38139.0,0.78076306]
[1610077708891,0.4684,38151.0,38145.0,0.13632608]
[1610077709092,0.4684,38151.0,38143.0,3.0809]
[1610077709292,0.4684,38151.0,38146.0,0.02130465]
[1610077709493,0.4684,38151.0,38144.0,0.14343538]
[1610077709692,0.4684,38151.0,38147.0,0.02130479]
[1610077709891,0.4684,38151.0,38147.0,0.11685479]
[1610077710093,0.4684,38151.0,38147.0,0.09555]
[1610077710291,0.4684,38151.0,38149.0,0.13632608]
[1610077710893,0.4684,38151.0,38150.0,0.02130437]
[1610077712796,0.0641,38151.0,38150.0,0.02130437]
[1610077712996,0.1569,38177.0,38150.0,0.02130437]
[1610077713198,0.3195,38186.0,38162.0,3.5779]
[1610077713397,0.1569,38185.0,38162.0,3.5779]
[1610077713598,0.1569,38185.0,38163.0,0.06788317]
[1610077713798,0.1569,38185.0,38163.0,0.17194225]
[1610077714198,0.1569,38185.0,38164.0,0.02130069]
[1610077714400,0.1569,38185.0,38173.0,0.13632608]
[1610077714598,0.1569,38185.0,38173.0,0.25024608]
[1610077714799,0.1569,38185.0,38174.0,0.02129941]
[1610077715298,0.1569,38185.0,38175.0,0.6078]
[1610077715699,0.1569,38185.0,38176.0,0.02129746]
[1610077716301,0.13632608,38177.0,38176.0,0.02129746]
[1610077720000,0.3195,38186.0,38176.0,0.02129746]
[1610077720203,0.3195,38186.0,38176.0,4.17969746]
[1610077720401,0.3195,38186.0,38185.0,0.26700608]
[1610077720800,0.3195,38186.0,38185.0,0.28829789]
[1610077723903,0.3195,38186.0,38185.0,0.33511509]
[1610077724606,0.13632608,38196.0,38185.0,0.33511509]
[1610077725004,0.13632608,38196.0,38186.0,0.02128968]
[1610077726407,0.13632608,38196.0,38185.0,0.12302941]
[1610077728410,0.4684,38201.0,38194.0,0.13632608]
[1610077728815,0.4684,38201.0,38194.0,0.22817608]
[1610077729015,0.4684,38201.0,38195.0,0.02128898]
[1610077729415,0.4684,38201.0,38195.0,0.06810432]
[1610077730419,0.4684,38201.0,38200.0,0.13632608]
[1610077730616,0.4684,38201.0,38195.0,0.06810432]
[1610077730816,0.4684,38201.0,38200.0,0.02128709]
[1610077731018,0.4684,38201.0,38196.0,0.02128637]
[1610077731417,0.4684,38201.0,38195.0,0.04681534]
[1610077731418,0.4684,38201.0,38200.0,0.02128642]
[1610077731617,0.4684,38201.0,38197.0,0.02128636]
[1610077731817,0.4684,38201.0,38200.0,0.02128641]
[1610077732219,0.4684,38201.0,38198.0,0.0212861]
[1610077732418,0.4684,38201.0,38200.0,0.15761162]
[1610077732618,0.4684,38201.0,38200.0,0.13632608]
[1610077732819,0.4684,38201.0,38200.0,0.13659491]
[1610077733021,0.4684,38201.0,38200.0,0.15761195]
[1610077735822,0.4684,38201.0,38200.0,0.27961173]
[1610077736024,0.4684,38201.0,38200.0,0.20441222]
[1610077736222,0.4684,38201.0,38200.0,0.15761195]
[1610077743533,0.4684,38201.0,38200.0,0.02128587]
[1610077743934,0.4684,38201.0,38199.0,0.02459819]
[1610077744133,0.4684,38201.0,38200.0,0.02460041]
[1610077744532,0.60472608,38201.0,38195.0,0.16092788]
[1610077744733,0.60472608,38201.0,38200.0,0.02460171]
[1610077744933,0.60472608,38201.0,38196.0,0.02460269]
[1610077745233,0.60472608,38201.0,38200.0,0.02460255]
[1610077745634,0.60472608,38201.0,38197.0,0.02460287]
[1610077745834,0.60472608,38201.0,38200.0,0.0243278]
[1610077746034,0.60472608,38201.0,38195.0,0.13632608]
[1610077746035,0.60472608,38201.0,38198.0,0.02460346]
[1610077746233,0.60472608,38201.0,38200.0,0.00027508]
[1610077746433,0.60472608,38201.0,38200.0,0.02460352]
[1610077746635,0.60472608,38201.0,38196.0,0.02460354]
[1610077746836,0.60472608,38201.0,38200.0,0.02460397]
[1610077747035,0.60472608,38201.0,38197.0,0.02460401]
[1610077747434,0.60472608,38201.0,38196.0,0.02460373]
[1610077747636,0.60472608,38201.0,38198.0,0.02460446]
[1610077747934,0.60472608,38201.0,38197.0,0.02460465]
[1610077748136,0.60472608,38201.0,38199.0,0.02460447]
[1610077748336,0.60472608,38201.0,38198.0,0.0246045]
[1610077748734,0.60472608,38201.0,38196.0,0.0246043]
[1610077748935,0.60472608,38201.0,38199.0,0.02460441]
[1610077749134,0.60472608,38201.0,38197.0,0.02460443]
[1610077749536,0.60472608,38201.0,38196.0,0.02460466]
[1610077749735,0.60472608,38201.0,38194.0,0.09185]
[1610077749736,3.8202,38200.0,38198.0,0.02460517]
[1610077749935,3.8202,38200.0,38197.0,0.02460459]
[1610077750335,3.8202,38200.0,38199.0,0.02460443]
[1610077750536,0.60472608,38201.0,38198.0,0.02460772]
[1610077750736,0.60472608,38201.0,38199.0,0.02460787]
[1610077751136,3.719,38200.0,38199.0,0.02460787]
[1610077751337,3.719,38200.0,38186.0,0.02461088]
[1610077751538,0.60472608,38201.0,38199.0,0.02460971]
[1610077751739,0.60472608,38201.0,38199.0,0.02433454]
[1610077751939,0.60472608,38201.0,38187.0,0.02460893]
[1610077752140,0.60472608,38201.0,38200.0,0.02460871]
[1610077752340,0.60472608,38201.0,38196.0,0.10578]
[1610077752541,0.13632608,38197.0,38196.0,0.10578]
[1610077752841,0.13632608,38197.0,38196.0,0.13038595]
[1610077754544,0.60472608,38201.0,38196.0,0.26671203]
[1610077754944,0.4684,38201.0,38197.0,0.02459805]
[1610077756546,0.4684,38201.0,38200.0,0.13632608]
[1610077757046,0.4684,38201.0,38200.0,0.16091863]
[1610077757649,0.4684,38201.0,38200.0,0.13632608]
[1610077757848,0.4684,38201.0,38200.0,0.1609187]
[1610077764555,0.60472608,38201.0,38200.0,0.1609187]
[1610077765356,0.13632608,38201.0,38200.0,0.1609187]
[1610077765555,0.1569,38233.0,38200.0,0.1609187]
[1610077765757,3.5066,38233.0,38200.0,0.1609187]
[1610077765955,3.5066,38233.0,38201.0,0.02459535]
[1610077766555,3.5066,38233.0,38208.0,0.27283608]
[1610077766755,0.1569,38233.0,38208.0,0.27283608]
[1610077767157,0.1569,38233.0,38209.0,0.02459502]
[1610077768459,0.13632608,38211.0,38209.0,0.02459502]
[1610077768660,0.1569,38233.0,38209.0,0.02459502]
[1610077770460,0.1569,38233.0,38230.0,0.13632608]
[1610077770660,0.9448,38249.0,38230.0,0.13632608]
[1610077771060,0.9448,38249.0,38231.0,0.02458968]
[1610077772561,0.13632608,38232.0,38231.0,0.02458968]
[1610077773162,0.9448,38249.0,38231.0,0.02458968]
[1610077773364,0.4764,38249.0,38231.0,0.02458968]
[1610077773963,0.3195,38249.0,38231.0,0.02458968]
[1610077774564,0.3195,38249.0,38247.0,0.13632608]
[1610077774963,0.3195,38249.0,38248.0,0.02458196]
[1610077776368,0.1569,38264.0,38248.0,0.02458196]
[1610077776567,0.13632608,38249.0,38248.0,0.02458196]
[1610077777368,0.13632608,38249.0,38247.0,0.02458017]
[1610077777568,0.13632608,38249.0,38248.0,0.02457857]
[1610077778168,0.13632608,38249.0,38247.0,0.0245782]
[1610077778369,0.13632608,38249.0,38248.0,0.02457749]
[1610077778973,0.13632608,38249.0,38247.0,0.0245772]
[1610077779169,0.13632608,38249.0,38248.0,0.0245772]
[1610077779669,0.13632608,38249.0,38247.0,0.02457609]
[1610077779870,0.13632608,38249.0,38248.0,0.02457616]
[1610077780469,0.13632608,38249.0,38248.0,0.13632608]
[1610077780669,0.13632608,38249.0,38248.0,0.16089995]
[1610077782972,0.1569,38264.0,38248.0,0.16089995]
[1610077783171,0.09585,38269.0,38248.0,0.16089995]
[1610077783372,0.1569,38284.0,38249.0,0.02457093]
[1610077784573,0.1569,38284.0,38279.0,0.13632608]
[1610077784773,0.3195,38294.0,38279.0,0.13632608]
[1610077784974,0.3195,38294.0,38280.0,0.02456107]
[1610077786579,0.13632608,38295.0,38293.0,0.13632608]
[1610077786779,0.13632608,38295.0,38293.0,0.23710608]
[1610077786980,0.13632608,38295.0,38294.0,0.02455671]
[1610077787978,0.13632608,38295.0,38280.0,0.02455927]
[1610077788578,0.13632608,38281.0,38280.0,0.02455927]
[1610077792582,0.13632608,38281.0,38280.0,0.16088535]
[1610077799785,0.53028596,38281.0,38280.0,0.16088535]
[1610077800986,0.53028596,38281.0,38280.0,0.02455927]
[1610077802587,0.53028596,38281.0,38272.0,0.0243739]
[1610077802790,0.53028596,38281.0,38280.0,0.02740671]
[1610077802987,0.53028596,38281.0,38273.0,0.02740756]
[1610077803387,0.53028596,38281.0,38280.0,0.02740872]
[1610077803588,0.53028596,38281.0,38274.0,0.02741382]
[1610077803788,0.53028596,38281.0,38280.0,0.02741355]
[1610077803988,0.53028596,38281.0,38263.0,0.10226]
[1610077804388,0.53028596,38281.0,38264.0,0.02741309]
[1610077804591,0.13632608,38265.0,38264.0,0.02741309]
[1610077808694,0.13632608,38265.0,38264.0,0.16373917]
[1610077809496,0.39395988,38281.0,38264.0,0.16373917]
[1610077809696,0.39395988,38281.0,38265.0,3.7169]
[1610077809897,0.39395988,38281.0,38265.0,3.74430352]
[1610077810299,0.39395988,38281.0,38266.0,0.08163689]
[1610077810498,0.39395988,38281.0,38266.0,0.16500015]
[1610077810700,0.39395988,38281.0,38280.0,0.13632608]
[1610077810899,0.39395988,38281.0,38280.0,0.25593608]
[1610077811297,0.39395988,38281.0,38280.0,0.28333643]
[1610077812699,0.53028596,38281.0,38280.0,0.28333643]
[1610077814301,0.39395988,38281.0,38280.0,0.28333643]
[1610077814902,0.39395988,38281.0,38280.0,0.80563643]
[1610077815402,0.39395988,38281.0,38280.0,0.85985526]
[1610077816705,0.53028596,38281.0,38280.0,0.85985526]
[1610077819310,0.39395988,38281.0,38280.0,0.85985526]
[1610077823316,0.39395988,38281.0,38280.0,0.20122918]
[1610077823914,0.39395988,38281.0,38280.0,0.14701035]
[1610077853951,0.39395988,38281.0,38263.0,0.10226]
[1610077854152,0.39395988,38281.0,38280.0,0.08611]
[1610077854552,0.39395988,38281.0,38280.0,0.11349629]
[1610077866271,0.39395988,38281.0,38257.0,0.13751495]
[1610077866473,0.39395988,38281.0,38280.0,0.09393]
[1610077866872,0.39395988,38281.0,38280.0,0.1239339]
[1610077867973,0.39395988,38281.0,38257.0,0.13751495]
[1610077868472,0.39395988,38281.0,38257.0,0.16751867]
[1610077868871,0.13632608,38258.0,38257.0,0.16751867]
[1610077869673,0.13632608,38258.0,38247.0,0.03000192]
[1610077869874,0.13632608,38258.0,38257.0,0.0300016]
[1610077870073,0.13632608,38258.0,38257.0,0.09815]
[1610077870273,0.13632608,38258.0,38257.0,0.1278674]
[1610077870475,0.13632608,38258.0,38257.0,0.12815223]
[1610077878989,0.3195,38280.0,38257.0,0.26447831]
[1610077879189,0.3195,38280.0,38268.0,3.9116]
[1610077879390,0.3195,38280.0,38268.0,4.01754]
[1610077879591,0.3195,38280.0,38269.0,0.08743422]
[1610077879789,0.3195,38280.0,38269.0,0.17436344]
[1610077879991,0.39395988,38281.0,38269.0,0.17436344]
[1610077880991,0.39395988,38281.0,38280.0,0.26464608]
[1610077881393,0.39395988,38281.0,38280.0,0.29463382]
[1610077881592,0.39395988,38281.0,38280.0,0.76993382]
[1610077882091,0.39395988,38281.0,38280.0,0.82734777]
[1610077889105,0.39395988,38281.0,38280.0,0.69102169]
[1610077891005,0.39395988,38281.0,38280.0,0.82734777]
[1610077897816,0.39395988,38281.0,38280.0,0.35204777]
[1610077898217,0.39395988,38281.0,38280.0,0.29463382]
[1610077903421,0.39395988,38281.0,38280.0,4.06493382]
[1610077904021,0.39395988,38281.0,38280.0,4.20919113]
[1610077908122,0.04648988,38281.0,38280.0,4.20919113]
[1610077908824,0.04648988,38281.0,38280.0,0.43889113]
[1610077909224,0.04648988,38281.0,38280.0,0.29463382]
[1610077909626,4.1291,38316.0,38280.0,0.29463382]
[1610077909826,0.3195,38325.0,38290.0,4.1437]
[1610077910025,0.3195,38325.0,38296.0,2.9773]
[1610077910426,0.3195,38325.0,38297.0,0.17418771]
[1610077910625,0.3195,38325.0,38297.0,0.27953771]
[1610077911026,0.3195,38325.0,38298.0,0.02996843]
[1610077911228,0.3195,38325.0,38303.0,0.13632608]
[1610077911828,0.3195,38325.0,38304.0,0.02996931]
[1610077912430,3.7242,38319.0,38298.0,0.02997036]
[1610077912628,3.7242,38319.0,38297.0,0.24956922]
[1610077912629,0.3195,38325.0,38305.0,0.02996954]
[1610077912830,0.3195,38325.0,38305.0,0.12374]
[1610077913029,0.3195,38325.0,38306.0,0.02997138]
[1610077913229,0.13632608,38307.0,38306.0,0.02997138]
[1610077955584,0.13632608,38307.0,38298.0,0.02994374]
[1610077955783,0.13632608,38307.0,38306.0,0.02994424]
[1610077956183,0.13632608,38307.0,38298.0,0.02994458]
[1610077956385,0.13632608,38307.0,38297.0,0.10535]
[1610077956386,0.13632608,38307.0,38306.0,0.02994484]
[1610077956584,0.13632608,38307.0,38299.0,0.02994489]
[1610077956984,0.13632608,38307.0,38306.0,0.02994665]
[1610077957185,0.13632608,38307.0,38300.0,0.02994553]
[1610077957386,0.13632608,38307.0,38306.0,0.02994563]
[1610077957585,0.10418,38312.0,38306.0,0.02994563]
[1610077957786,0.10418,38312.0,38301.0,0.0299455]
[1610077957986,0.30066067,38307.0,38297.0,0.10535]
[1610077958186,0.30066067,38307.0,38302.0,0.02994589]
[1610077958387,0.30066067,38307.0,38298.0,0.02994439]
[1610077958786,0.30066067,38307.0,38296.0,0.02994368]
[1610077958988,0.30066067,38307.0,38299.0,0.02994372]
[1610077959186,0.30066067,38307.0,38299.0,0.02965929]
[1610077959386,0.30066067,38307.0,38297.0,0.02994383]
[1610077959587,0.13632608,38300.0,38295.0,0.10618]
[1610077959786,0.13632608,38300.0,38298.0,0.02994403]
[1610077959986,0.13632608,38300.0,38296.0,0.02994403]
[1610077960286,0.13632608,38300.0,38299.0,0.02994375]
[1610077960486,0.13632608,38300.0,38297.0,0.02994351]
[1610077960886,0.13632608,38300.0,38296.0,0.02994342]
[1610077961088,0.13632608,38300.0,38298.0,0.02994331]
[1610077961287,0.13632608,38300.0,38297.0,0.02994313]
[1610077961687,0.13632608,38300.0,38296.0,0.02994302]
[1610077961888,0.13632608,38300.0,38298.0,0.02994286]
[1610077962088,0.13632608,38300.0,38297.0,0.02994331]
[1610077962489,0.13632608,38300.0,38296.0,0.02994321]
[1610077962689,0.13632608,38300.0,38298.0,0.02994323]
[1610077962890,0.13632608,38300.0,38295.0,0.10618]
[1610077963189,0.13632608,38300.0,38299.0,0.02994298]
[1610077963390,0.13632608,38300.0,38296.0,0.02994308]
[1610077963791,0.13632608,38300.0,38299.0,0.02994285]
[1610077963994,0.13632608,38300.0,38297.0,0.02994291]
[1610077964192,0.13632608,38300.0,38299.0,0.02994331]
[1610077964593,0.13632608,38300.0,38285.0,0.13632608]
[1610077964791,0.13632608,38300.0,38299.0,0.0299432]
[1610077964991,0.13632608,38300.0,38286.0,0.02994306]
[1610077965192,0.13632608,38300.0,38299.0,0.09085]
[1610077965393,0.13632608,38300.0,38299.0,0.12079372]
[1610077999042,0.13632608,38300.0,38299.0,0.73739372]
[1610077999242,0.30066067,38307.0,38299.0,0.73739372]
[1610077999443,0.30066067,38307.0,38299.0,0.79559947]
[1610077999643,0.30066067,38307.0,38306.0,0.13632608]
[1610078000146,0.30066067,38307.0,38306.0,0.59984519]
[1610078000744,0.30066067,38307.0,38306.0,0.65804119]
[1610078000948,0.30066067,38307.0,38306.0,0.59984519]
[1610078001145,0.30066067,38307.0,38306.0,0.6580386]
[1610078001545,0.30066067,38307.0,38306.0,0.59984519]
[1610078001747,0.30066067,38307.0,38306.0,0.65803808]
[1610078001945,0.30066067,38307.0,38306.0,0.16694519]
[1610078002345,0.30066067,38307.0,38306.0,0.22513821]
[1610078002545,0.30066067,38307.0,38306.0,0.16694519]
[1610078003147,0.30066067,38307.0,38306.0,3.50104519]
[1610078003546,0.30066067,38307.0,38306.0,3.64698786]
[1610078004950,0.1569,38338.0,38306.0,3.64698786]
[1610078005148,0.1569,38338.0,38306.0,0.31288786]
[1610078005349,0.1569,38338.0,38323.0,3.873]
[1610078005548,0.1569,38338.0,38323.0,3.98269]
[1610078005750,0.01936721,38340.0,38337.0,0.13632608]
[1610078005949,0.01936721,38340.0,38337.0,0.22797608]
[1610078006150,0.01936721,38340.0,38338.0,0.03060395]
[1610078007549,0.01936721,38340.0,38338.0,3.13810395]
[1610078007951,0.01936721,38340.0,38339.0,0.17646678]
[1610078008750,0.01936721,38340.0,38338.0,0.03059531]
[1610078008951,0.1569,38371.0,38338.0,0.03059531]
[1610078009153,0.1569,38371.0,38337.0,0.22797608]
[1610078009154,0.1569,38371.0,38355.0,4.2148]
[1610078009353,0.1569,38371.0,38355.0,4.32162]
[1610078009552,0.01595005,38386.0,38356.0,0.08872482]
[1610078009553,0.1569,38385.0,38356.0,0.08872482]
[1610078009753,0.1569,38385.0,38368.0,0.4576]
[1610078009953,0.1569,38385.0,38367.0,0.25413608]
[1610078010155,0.1569,38385.0,38376.0,4.0704]
[1610078010556,0.1569,38385.0,38377.0,0.00028542]
[1610078010753,0.1569,38385.0,38377.0,0.03058143]
[1610078011755,0.1569,38385.0,38384.0,0.13632608]
[1610078012159,0.1569,38385.0,38384.0,0.166906]
[1610078013457,0.1569,38385.0,38384.0,0.594606]
[1610078016861,0.1569,38385.0,38384.0,0.03057992]
[1610078017464,0.13632608,38388.0,38384.0,0.03057992]
[1610078017663,0.13632608,38388.0,38384.0,0.0002854]
[1610078017865,3.479,38385.0,38384.0,0.0002854]
[1610078018063,3.479,38385.0,38351.0,0.05812433]
[1610078018265,0.1569,38384.0,38368.0,0.03058227]
[1610078018465,0.13632608,38388.0,38356.0,0.03058392]
[1610078018666,0.13632608,38388.0,38366.0,3.2757]
[1610078018866,0.13632608,38388.0,38369.0,0.03058351]
[1610078019066,0.13632608,38388.0,38367.0,0.15541288]
[1610078019267,0.13632608,38388.0,38370.0,0.03057803]
[1610078019567,0.13632608,38388.0,38368.0,0.03057719]
[1610078019767,0.13632608,38388.0,38387.0,0.13632608]
[1610078019968,0.13632608,38388.0,38387.0,0.23646608]
[1610078020370,0.1569,38398.0,38387.0,0.26703937]
[1610078020968,0.1569,38398.0,38388.0,0.03057205]
[1610078021768,0.13632608,38389.0,38388.0,0.03057205]
[1610078023071,0.13632608,38389.0,38388.0,0.03028673]
[1610078023271,0.13632608,38389.0,38388.0,0.03057206]
[1610078024573,0.13632608,38389.0,38388.0,0.00028533]
[1610078025172,0.13632608,38389.0,38388.0,0.03057364]
[1610078025572,0.13632608,38389.0,38388.0,0.00028533]
[1610078025773,0.13632608,38389.0,38388.0,0.03057545]
[1610078027775,0.13632608,38389.0,38368.0,0.08868868]
[1610078027975,0.13632608,38389.0,38388.0,0.03057806]
[1610078028176,3.51072608,38389.0,38369.0,0.03057809]
[1610078028576,3.51072608,38389.0,38388.0,0.00028541]
[1610078028779,0.13632608,38389.0,38370.0,0.03058262]
[1610078028975,3.8756,38371.0,38368.0,0.0302994]
[1610078029376,3.8756,38371.0,38337.0,3.3735]
[1610078029575,0.1569,38378.0,38369.0,0.03058618]
[1610078029777,0.13632608,38370.0,38354.0,0.13391]
[1610078029976,3.3362,38368.0,38354.0,0.13391]
[1610078030376,3.3362,38368.0,38355.0,0.03059053]
[1610078030777,3.3362,38368.0,38354.0,0.13391]
[1610078031176,3.3362,38368.0,38322.0,0.14582109]
[1610078031576,3.3362,38368.0,38322.0,0.1764167]
[1610078031776,0.3195,38370.0,38328.0,0.13632608]
[1610078031977,3.6988,38357.0,38328.0,0.23243608]
[1610078032176,3.6988,38357.0,38329.0,0.03059879]
[1610078033777,3.6988,38357.0,38356.0,0.13632608]
[1610078033980,0.13632608,38359.0,38356.0,0.26872608]
[1610078034178,0.13632608,38359.0,38356.0,0.26901156]
[1610078034579,0.13632608,38359.0,38357.0,0.03058724]
[1610078034978,0.13632608,38359.0,38358.0,0.03058554]
[1610078035379,0.13632608,38359.0,38357.0,0.03058453]
[1610078035579,0.13632608,38359.0,38358.0,0.03058564]
[1610078035979,4.16722608,38359.0,38358.0,0.03058564]
[1610078036179,4.16722608,38359.0,38357.0,0.03058507]
[1610078036379,4.16722608,38359.0,38358.0,0.03058696]
[1610078036980,4.16722608,38359.0,38357.0,0.03059334]
[1610078037179,4.27354608,38359.0,38358.0,0.03059543]
[1610078037579,4.27354608,38359.0,38357.0,0.00028557]
[1610078043986,4.27354608,38359.0,38337.0,0.03077135]
[1610078044188,4.27354608,38359.0,38358.0,0.00028601]
[1610078044589,4.27354608,38359.0,38338.0,0.03077452]
[1610078044789,4.27354608,38359.0,38358.0,0.00028604]
[1610078044988,4.27354608,38359.0,38339.0,0.03077685]
[1610078045188,4.27354608,38359.0,38358.0,0.00028606]
[1610078045588,4.27354608,38359.0,38337.0,0.03077662]
[1610078045789,4.13722,38359.0,38358.0,0.00028606]
[1610078045988,4.13722,38359.0,38338.0,0.03077752]
[1610078046389,4.13722,38359.0,38337.0,0.03077776]
[1610078046589,4.13722,38359.0,38339.0,0.03077832]
[1610078046790,4.13722,38359.0,38338.0,0.03077826]
[1610078047189,4.13722,38359.0,38340.0,0.03077883]
[1610078047391,4.13722,38359.0,38336.0,0.10243]
[1610078047392,4.13722,38359.0,38339.0,0.03077868]
[1610078047591,4.13722,38359.0,38341.0,0.03077823]
[1610078047794,0.13632608,38342.0,38341.0,0.03077823]
[1610078047992,0.13632608,38342.0,38340.0,0.03077839]
[1610078048192,0.13632608,38342.0,38341.0,0.03077801]
[1610078048692,0.13632608,38342.0,38337.0,0.03077882]
[1610078048893,0.13632608,38342.0,38341.0,0.03077891]
[1610078049194,0.13632608,38342.0,38336.0,0.10243]
[1610078049195,0.13632608,38342.0,38338.0,0.03077872]
[1610078049496,0.13632608,38342.0,38341.0,0.03077781]
[1610078049694,0.13632608,38342.0,38339.0,0.03077788]
[1610078050094,0.13632608,38342.0,38337.0,0.03077881]
[1610078050295,0.13632608,38342.0,38330.0,0.13632608]
[1610078050494,0.13632608,38342.0,38338.0,0.03077809]
[1610078050894,0.13632608,38342.0,38338.0,0.13274]
[1610078051095,0.13632608,38342.0,38339.0,0.03077716]
[1610078051496,4.087,38340.0,38339.0,0.03077716]
[1610078054199,0.13632608,38342.0,38329.0,0.03078001]
[1610078054398,0.13632608,38342.0,38339.0,0.03077994]
[1610078054798,0.13632608,38342.0,38329.0,0.03077952]
[1610078054999,0.13632608,38342.0,38340.0,0.03077866]
[1610078055198,0.13632608,38342.0,38328.0,0.09611]
[1610078055399,0.13632608,38342.0,38319.0,0.14642625]
[1610078055599,0.13632608,38342.0,38341.0,0.03077768]
[1610078055800,0.13632608,38342.0,38334.0,0.10078]
[1610078055998,0.13632608,38342.0,38341.0,0.03077759]
[1610078056399,0.13632608,38342.0,38335.0,0.0307775]
[1610078056599,0.13632608,38342.0,38341.0,0.03077746]